[Event "Titled Tuesday Blitz February 15 Early 2022"]
[White "Gurevich, Dmitry"]
[Black "Khoroshev, Nikita"]
[WhiteFideId "2000407"]
[BlackFideId "14200287"]
[WhiteElo "2506"]
[BlackElo "2354"]
[Result "0-1"]
[Round "09"]
[TimeControl "180+1"]
[Date "2022.02.15"]
[WhiteClock "0:00:01"]
[BlackClock "0:00:51"]

1. d4 {[%clk 0:03:00]}  Nf6 {[%clk 0:02:59]} 2. c4 {[%clk 0:02:57]}  e6 {[%clk 0:03:00]} 3. g3 {[%clk 0:02:56]}  d5 {[%clk 0:02:59]} 4. Bg2 {[%clk 0:02:56]}  Nc6 {[%clk 0:02:59]} 5. cxd5 {[%clk 0:02:48]}  exd5 {[%clk 0:02:59]} 6. Nf3 {[%clk 0:02:48]}  h6 {[%clk 0:02:55]} 7. O-O {[%clk 0:02:48]}  Bd6 {[%clk 0:02:52]} 8. Nc3 {[%clk 0:02:47]}  O-O {[%clk 0:02:52]} 9. Nb5 {[%clk 0:02:46]}  Bf5 {[%clk 0:02:50]} 10. Nxd6 {[%clk 0:02:45]}  cxd6 {[%clk 0:02:51]} 11. Bf4 {[%clk 0:02:30]}  Qd7 {[%clk 0:02:50]} 12. Rc1 {[%clk 0:02:27]}  Rac8 {[%clk 0:02:49]} 13. Qa4 {[%clk 0:02:19]}  a6 {[%clk 0:02:47]} 14. Qa3 {[%clk 0:02:14]}  Rfd8 {[%clk 0:02:45]} 15. Rfd1 {[%clk 0:02:10]}  Ne4 {[%clk 0:02:42]} 16. h4 {[%clk 0:02:01]}  Bh3 {[%clk 0:02:39]} 17. Be3 {[%clk 0:01:52]}  Bxg2 {[%clk 0:02:37]} 18. Kxg2 {[%clk 0:01:51]}  Qf5 {[%clk 0:02:31]} 19. Rh1 {[%clk 0:01:36]}  Re8 {[%clk 0:02:27]} 20. h5 {[%clk 0:01:30]}  Ne7 {[%clk 0:02:18]} 21. Rxc8 {[%clk 0:01:26]}  Rxc8 {[%clk 0:02:18]} 22. Qb3 {[%clk 0:01:23]}  b5 {[%clk 0:02:17]} 23. a4 {[%clk 0:01:21]}  Qd7 {[%clk 0:01:58]} 24. axb5 {[%clk 0:01:17]}  Qxb5 {[%clk 0:01:58]} 25. Qxb5 {[%clk 0:01:16]}  axb5 {[%clk 0:01:59]} 26. Rc1 {[%clk 0:01:12]}  Rc4 {[%clk 0:01:53]} 27. b3 {[%clk 0:01:00]}  Rxc1 {[%clk 0:01:53]} 28. Bxc1 {[%clk 0:00:59]}  Nc6 {[%clk 0:01:54]} 29. Bf4 {[%clk 0:00:25]}  Kf8 {[%clk 0:01:38]} 30. Ne1 {[%clk 0:00:23]}  Ke7 {[%clk 0:01:31]} 31. e3 {[%clk 0:00:20]}  Nd2 {[%clk 0:01:27]} 32. Nd3 {[%clk 0:00:13]}  Nxb3 {[%clk 0:01:26]} 33. g4 {[%clk 0:00:13]}  f6 {[%clk 0:01:25]} 34. Bg3 {[%clk 0:00:13]}  Kd7 {[%clk 0:01:16]} 35. f3 {[%clk 0:00:10]}  Nd2 {[%clk 0:01:15]} 36. Be1 {[%clk 0:00:08]}  Nc4 {[%clk 0:01:14]} 37. Kf2 {[%clk 0:00:09]}  Ne7 {[%clk 0:01:01]} 38. Ke2 {[%clk 0:00:08]}  f5 {[%clk 0:00:59]} 39. gxf5 {[%clk 0:00:05]}  Nxf5 {[%clk 0:00:58]} 40. Nf4 {[%clk 0:00:06]}  Ncxe3 {[%clk 0:00:55]} 41. Bb4 {[%clk 0:00:02]}  Nc2 {[%clk 0:00:51]} 42. Ba5 {[%clk 0:00:01]}  Ncxd4+ {[%clk 0:00:51]} 0-1


[Site "https://www.chess.com"]

[Event "Titled Tuesday Blitz February 15 Early 2022"]
[White "Hakemi, Arman"]
[Black "Timofeev, Artyom"]
[WhiteFideId "22520805"]
[BlackFideId "4140419"]
[WhiteElo "2208"]
[BlackElo "2583"]
[Result "1-0"]
[Round "09"]
[TimeControl "180+1"]
[Date "2022.02.15"]
[WhiteClock "0:00:18"]
[BlackClock "0:00:22"]

1. e4 {[%clk 0:03:00]}  c5 {[%clk 0:03:00]} 2. Nf3 {[%clk 0:03:00]}  Nc6 {[%clk 0:03:00]} 3. d4 {[%clk 0:02:28]}  cxd4 {[%clk 0:03:00]} 4. Nxd4 {[%clk 0:02:29]}  e5 {[%clk 0:03:00]} 5. Nb5 {[%clk 0:02:09]}  a6 {[%clk 0:03:00]} 6. Nd6+ {[%clk 0:02:08]}  Bxd6 {[%clk 0:03:00]} 7. Qxd6 {[%clk 0:02:07]}  Qe7 {[%clk 0:03:00]} 8. Qd1 {[%clk 0:02:04]}  Nf6 {[%clk 0:02:59]} 9. Nc3 {[%clk 0:02:05]}  d6 {[%clk 0:02:59]} 10. Bg5 {[%clk 0:02:04]}  Be6 {[%clk 0:02:59]} 11. Nd5 {[%clk 0:02:04]}  Bxd5 {[%clk 0:02:59]} 12. exd5 {[%clk 0:02:05]}  Nb8 {[%clk 0:02:59]} 13. c4 {[%clk 0:02:05]}  O-O {[%clk 0:02:59]} 14. Be2 {[%clk 0:02:06]}  Nbd7 {[%clk 0:02:59]} 15. O-O {[%clk 0:02:06]}  h6 {[%clk 0:02:58]} 16. Be3 {[%clk 0:02:07]}  Ne4 {[%clk 0:02:55]} 17. f3 {[%clk 0:02:00]}  Ng5 {[%clk 0:02:47]} 18. h4 {[%clk 0:01:59]}  Nh7 {[%clk 0:02:47]} 19. Bf2 {[%clk 0:01:58]}  Nhf6 {[%clk 0:02:44]} 20. Rc1 {[%clk 0:01:56]}  e4 {[%clk 0:02:43]} 21. Re1 {[%clk 0:01:55]}  Ne5 {[%clk 0:02:42]} 22. f4 {[%clk 0:01:48]}  Ned7 {[%clk 0:02:35]} 23. Qd4 {[%clk 0:01:49]}  a5 {[%clk 0:02:34]} 24. a3 {[%clk 0:01:47]}  a4 {[%clk 0:02:33]} 25. g4 {[%clk 0:01:46]}  Nc5 {[%clk 0:02:33]} 26. Rc3 {[%clk 0:01:46]}  Nb3 {[%clk 0:02:22]} 27. Qe3 {[%clk 0:01:43]}  Nd7 {[%clk 0:02:20]} 28. g5 {[%clk 0:01:42]}  f5 {[%clk 0:02:16]} 29. Qg3 {[%clk 0:01:36]}  hxg5 {[%clk 0:02:10]} 30. hxg5 {[%clk 0:01:36]}  g6 {[%clk 0:02:10]} 31. Bd1 {[%clk 0:01:35]}  Ndc5 {[%clk 0:02:05]} 32. Kg2 {[%clk 0:01:31]}  Kf7 {[%clk 0:02:02]} 33. Bxb3 {[%clk 0:01:23]}  Nxb3 {[%clk 0:02:00]} 34. Rxb3 {[%clk 0:01:23]}  axb3 {[%clk 0:01:59]} 35. Bd4 {[%clk 0:01:24]}  Rh8 {[%clk 0:01:59]} 36. Bxh8 {[%clk 0:01:21]}  Rxh8 {[%clk 0:01:58]} 37. Qxb3 {[%clk 0:01:14]}  Ke8 {[%clk 0:01:54]} 38. Qa4+ {[%clk 0:01:11]}  Kf7 {[%clk 0:01:46]} 39. Qc2 {[%clk 0:01:07]}  Rh4 {[%clk 0:01:37]} 40. Qf2 {[%clk 0:01:01]}  Rg4+ {[%clk 0:01:30]} 41. Kf1 {[%clk 0:01:01]}  Qd8 {[%clk 0:01:22]} 42. Ke2 {[%clk 0:00:53]}  Qh8 {[%clk 0:01:19]} 43. Kd1 {[%clk 0:00:50]}  Qh3 {[%clk 0:01:18]} 44. Qb6 {[%clk 0:00:44]}  Qd3+ {[%clk 0:01:10]} 45. Kc1 {[%clk 0:00:45]}  Qxc4+ {[%clk 0:00:56]} 46. Kb1 {[%clk 0:00:45]}  Qxd5 {[%clk 0:00:57]} 47. Qc7+ {[%clk 0:00:45]}  Ke6 {[%clk 0:00:56]} 48. Qc8+ {[%clk 0:00:44]}  Ke7 {[%clk 0:00:57]} 49. Qc7+ {[%clk 0:00:44]}  Ke6 {[%clk 0:00:57]} 50. Qc8+ {[%clk 0:00:29]}  Ke7 {[%clk 0:00:57]} 51. Rh1 {[%clk 0:00:29]}  Qf7 {[%clk 0:00:31]} 52. Rh7 {[%clk 0:00:29]}  Qxh7 {[%clk 0:00:30]} 53. Qc7+ {[%clk 0:00:30]}  Ke6 {[%clk 0:00:31]} 54. Qxh7 {[%clk 0:00:30]}  Rxf4 {[%clk 0:00:28]} 55. Qxg6+ {[%clk 0:00:31]}  Kd5 {[%clk 0:00:29]} 56. Qf7+ {[%clk 0:00:31]}  Kd4 {[%clk 0:00:29]} 57. Qf6+ {[%clk 0:00:27]}  Kd3 {[%clk 0:00:29]} 58. Qxd6+ {[%clk 0:00:27]}  Ke3 {[%clk 0:00:29]} 59. Qb6+ {[%clk 0:00:25]}  Kf3 {[%clk 0:00:28]} 60. Qxb7 {[%clk 0:00:23]}  Rg4 {[%clk 0:00:27]} 61. a4 {[%clk 0:00:19]}  f4 {[%clk 0:00:23]} 62. a5 {[%clk 0:00:19]}  Rxg5 {[%clk 0:00:24]} 63. a6 {[%clk 0:00:19]}  Ra5 {[%clk 0:00:23]} 64. a7 {[%clk 0:00:19]}  Ke3 {[%clk 0:00:22]} 65. Qb6+ {[%clk 0:00:18]} 1-0


[Site "https://www.chess.com"]

[Event "Titled Tuesday Blitz February 15 Early 2022"]
[White "Howell, David W L"]
[Black "Popadic, Dragan"]
[WhiteFideId "410608"]
[BlackFideId "913650"]
[WhiteElo "2559"]
[BlackElo "2199"]
[Result "1-0"]
[Round "09"]
[TimeControl "180+1"]
[Date "2022.02.15"]
[WhiteClock "0:00:22"]
[BlackClock "0:00:03"]

1. e4 {[%clk 0:03:00]}  c5 {[%clk 0:02:59]} 2. Nf3 {[%clk 0:02:59]}  Nc6 {[%clk 0:02:58]} 3. Nc3 {[%clk 0:02:58]}  e5 {[%clk 0:02:57]} 4. Bc4 {[%clk 0:02:58]}  Be7 {[%clk 0:02:57]} 5. d3 {[%clk 0:02:58]}  Nf6 {[%clk 0:02:57]} 6. Bg5 {[%clk 0:02:56]}  d6 {[%clk 0:02:57]} 7. Nd2 {[%clk 0:02:55]}  O-O {[%clk 0:02:56]} 8. Nf1 {[%clk 0:02:55]}  Be6 {[%clk 0:02:56]} 9. Ne3 {[%clk 0:02:56]}  a6 {[%clk 0:02:54]} 10. Bxf6 {[%clk 0:02:52]}  Bxf6 {[%clk 0:02:54]} 11. a4 {[%clk 0:02:52]}  g6 {[%clk 0:02:50]} 12. O-O {[%clk 0:02:46]}  Bg7 {[%clk 0:02:50]} 13. Ne2 {[%clk 0:02:36]}  Nd4 {[%clk 0:02:38]} 14. c3 {[%clk 0:02:34]}  Nxe2+ {[%clk 0:02:37]} 15. Qxe2 {[%clk 0:02:35]}  Kh8 {[%clk 0:02:31]} 16. a5 {[%clk 0:02:30]}  Rb8 {[%clk 0:02:29]} 17. Rfd1 {[%clk 0:02:28]}  Qe7 {[%clk 0:02:11]} 18. Nd5 {[%clk 0:02:20]}  Qd8 {[%clk 0:02:07]} 19. Nb6 {[%clk 0:02:18]}  Qe7 {[%clk 0:02:00]} 20. Nd5 {[%clk 0:02:17]}  Qd8 {[%clk 0:01:59]} 21. Nb6 {[%clk 0:02:17]}  Qe7 {[%clk 0:01:59]} 22. Rab1 {[%clk 0:02:14]}  Rbd8 {[%clk 0:01:49]} 23. b4 {[%clk 0:02:11]}  cxb4 {[%clk 0:01:46]} 24. Rxb4 {[%clk 0:02:12]}  Qg5 {[%clk 0:01:32]} 25. Bd5 {[%clk 0:01:56]}  Qe7 {[%clk 0:01:16]} 26. Rdb1 {[%clk 0:01:54]}  Rb8 {[%clk 0:01:16]} 27. Qa2 {[%clk 0:01:52]}  Bc8 {[%clk 0:00:36]} 28. Nxc8 {[%clk 0:01:29]}  Rfxc8 {[%clk 0:00:32]} 29. Rxb7 {[%clk 0:01:30]}  Rxb7 {[%clk 0:00:29]} 30. Rxb7 {[%clk 0:01:30]}  Qg5 {[%clk 0:00:27]} 31. Qc2 {[%clk 0:01:25]}  f5 {[%clk 0:00:25]} 32. c4 {[%clk 0:01:19]}  fxe4 {[%clk 0:00:22]} 33. dxe4 {[%clk 0:01:15]}  Qd8 {[%clk 0:00:19]} 34. Rb6 {[%clk 0:01:01]}  Qc7 {[%clk 0:00:17]} 35. g3 {[%clk 0:01:00]}  Rf8 {[%clk 0:00:16]} 36. Kg2 {[%clk 0:00:58]}  Qc5 {[%clk 0:00:16]} 37. Rxa6 {[%clk 0:00:58]}  Bh6 {[%clk 0:00:15]} 38. Qe2 {[%clk 0:00:53]}  Bc1 {[%clk 0:00:13]} 39. h4 {[%clk 0:00:53]}  Ba3 {[%clk 0:00:12]} 40. h5 {[%clk 0:00:44]}  gxh5 {[%clk 0:00:10]} 41. Rc6 {[%clk 0:00:37]}  Qxa5 {[%clk 0:00:09]} 42. Qxh5 {[%clk 0:00:37]}  Qd2 {[%clk 0:00:06]} 43. Bf7 {[%clk 0:00:21]}  Bc5 {[%clk 0:00:04]} 44. Rxc5 {[%clk 0:00:22]}  dxc5 {[%clk 0:00:03]} 45. Qxe5# {[%clk 0:00:22]} 1-0


[Site "https://www.chess.com"]

[Event "Titled Tuesday Blitz February 15 Early 2022"]
[White "Iljin, Timofey"]
[Black "Tsyhanchuk, Stanislav"]
[WhiteFideId "14110180"]
[BlackFideId "13505130"]
[WhiteElo "2396"]
[BlackElo "2078"]
[Result "0-1"]
[Round "09"]
[TimeControl "180+1"]
[Date "2022.02.15"]
[WhiteClock "0:00:14"]
[BlackClock "0:00:12"]

1. e4 {[%clk 0:03:00]}  c5 {[%clk 0:02:59]} 2. c3 {[%clk 0:02:59]}  Nf6 {[%clk 0:02:55]} 3. e5 {[%clk 0:03:00]}  Nd5 {[%clk 0:02:54]} 4. d4 {[%clk 0:03:00]}  cxd4 {[%clk 0:02:54]} 5. cxd4 {[%clk 0:03:01]}  d6 {[%clk 0:02:54]} 6. Nf3 {[%clk 0:03:02]}  Nc6 {[%clk 0:02:53]} 7. Bc4 {[%clk 0:03:02]}  Nb6 {[%clk 0:02:52]} 8. Bxf7+ {[%clk 0:03:02]}  Kxf7 {[%clk 0:02:22]} 9. e6+ {[%clk 0:03:01]}  Kg8 {[%clk 0:01:52]} 10. d5 {[%clk 0:03:01]}  Ne5 {[%clk 0:01:50]} 11. Nxe5 {[%clk 0:03:00]}  dxe5 {[%clk 0:01:51]} 12. Nc3 {[%clk 0:03:01]}  g6 {[%clk 0:01:27]} 13. O-O {[%clk 0:03:01]}  Bg7 {[%clk 0:01:27]} 14. Be3 {[%clk 0:02:52]}  Nc4 {[%clk 0:01:25]} 15. Bc5 {[%clk 0:02:47]}  b6 {[%clk 0:01:19]} 16. Be3 {[%clk 0:02:43]}  Bb7 {[%clk 0:01:10]} 17. Rc1 {[%clk 0:02:40]}  Rc8 {[%clk 0:01:08]} 18. Qe2 {[%clk 0:02:38]}  Nxe3 {[%clk 0:01:08]} 19. fxe3 {[%clk 0:02:38]}  Bf6 {[%clk 0:01:00]} 20. e4 {[%clk 0:02:30]}  Kg7 {[%clk 0:01:00]} 21. Qg4 {[%clk 0:02:24]}  h5 {[%clk 0:00:58]} 22. Qg3 {[%clk 0:02:19]}  Ba6 {[%clk 0:00:57]} 23. Rf2 {[%clk 0:02:17]}  b5 {[%clk 0:00:55]} 24. Rcf1 {[%clk 0:02:07]}  b4 {[%clk 0:00:54]} 25. Ne2 {[%clk 0:02:06]}  Rc2 {[%clk 0:00:46]} 26. Nc1 {[%clk 0:01:40]}  Qc7 {[%clk 0:00:41]} 27. Rxc2 {[%clk 0:01:18]}  Qxc2 {[%clk 0:00:41]} 28. Re1 {[%clk 0:01:17]}  Qxb2 {[%clk 0:00:39]} 29. Nb3 {[%clk 0:01:12]}  Qc3 {[%clk 0:00:24]} 30. Re3 {[%clk 0:01:08]}  Qc4 {[%clk 0:00:20]} 31. h4 {[%clk 0:01:03]}  Qf1+ {[%clk 0:00:16]} 32. Kh2 {[%clk 0:01:03]}  Qf4 {[%clk 0:00:16]} 33. Nc5 {[%clk 0:01:03]}  Bxh4 {[%clk 0:00:13]} 34. Qxf4 {[%clk 0:01:01]}  exf4 {[%clk 0:00:14]} 35. Rb3 {[%clk 0:00:57]}  Bg3+ {[%clk 0:00:14]} 36. Kg1 {[%clk 0:00:58]}  Rc8 {[%clk 0:00:14]} 37. Rb1 {[%clk 0:00:39]}  Rxc5 {[%clk 0:00:14]} 38. Rd1 {[%clk 0:00:40]}  Be2 {[%clk 0:00:14]} 39. Rb1 {[%clk 0:00:38]}  Kf6 {[%clk 0:00:13]} 40. Kh1 {[%clk 0:00:37]}  Bd3 {[%clk 0:00:13]} 41. Kg1 {[%clk 0:00:38]}  Bxe4 {[%clk 0:00:14]} 42. Rd1 {[%clk 0:00:36]}  Bxd5 {[%clk 0:00:13]} 43. Kh1 {[%clk 0:00:35]}  Bxe6 {[%clk 0:00:14]} 44. Kg1 {[%clk 0:00:35]}  Rc2 {[%clk 0:00:14]} 45. a3 {[%clk 0:00:34]}  Bd5 {[%clk 0:00:14]} 46. Rb1 {[%clk 0:00:29]}  Rxg2+ {[%clk 0:00:13]} 47. Kf1 {[%clk 0:00:29]}  Rh2 {[%clk 0:00:13]} 48. Rxb4 {[%clk 0:00:25]}  Bf3 {[%clk 0:00:13]} 49. Rxf4+ {[%clk 0:00:13]}  Bxf4 {[%clk 0:00:12]} 50. Kg1 {[%clk 0:00:13]}  Bg3 {[%clk 0:00:12]} 51. a4 {[%clk 0:00:14]}  Rh1# {[%clk 0:00:12]} 0-1


[Site "https://www.chess.com"]

[Event "Titled Tuesday Blitz February 15 Early 2022"]
[White "Jakubowska, Anna"]
[Black "Shton, Roman"]
[WhiteFideId "1121952"]
[BlackFideId "14137461"]
[WhiteElo "1924"]
[BlackElo "2038"]
[Result "0-1"]
[Round "09"]
[TimeControl "180+1"]
[Date "2022.02.15"]
[WhiteClock "0:00:17"]
[BlackClock "0:00:13"]

1. e4 {[%clk 0:03:00]}  Nf6 {[%clk 0:02:57]} 2. e5 {[%clk 0:03:00]}  Nd5 {[%clk 0:02:57]} 3. d4 {[%clk 0:03:01]}  d6 {[%clk 0:02:58]} 4. c4 {[%clk 0:03:01]}  Nb6 {[%clk 0:02:58]} 5. exd6 {[%clk 0:03:02]}  cxd6 {[%clk 0:02:58]} 6. Be3 {[%clk 0:03:02]}  g6 {[%clk 0:02:58]} 7. Nc3 {[%clk 0:03:03]}  Bg7 {[%clk 0:02:59]} 8. Rc1 {[%clk 0:03:03]}  O-O {[%clk 0:02:59]} 9. b3 {[%clk 0:03:03]}  Bf5 {[%clk 0:02:36]} 10. Be2 {[%clk 0:03:02]}  d5 {[%clk 0:02:36]} 11. c5 {[%clk 0:03:01]}  Nc8 {[%clk 0:02:35]} 12. Bf3 {[%clk 0:02:56]}  e5 {[%clk 0:01:40]} 13. dxe5 {[%clk 0:02:47]}  Nc6 {[%clk 0:01:40]} 14. Bxd5 {[%clk 0:02:28]}  Nxe5 {[%clk 0:01:27]} 15. Nge2 {[%clk 0:02:25]}  Nd3+ {[%clk 0:01:25]} 16. Kf1 {[%clk 0:02:22]}  Nxc1 {[%clk 0:01:25]} 17. Qxc1 {[%clk 0:02:22]}  Bd3 {[%clk 0:01:20]} 18. Bxb7 {[%clk 0:02:14]}  Rb8 {[%clk 0:01:19]} 19. c6 {[%clk 0:02:13]}  Qa5 {[%clk 0:01:17]} 20. Bd2 {[%clk 0:02:10]}  Re8 {[%clk 0:01:14]} 21. Kg1 {[%clk 0:01:27]}  Bxe2 {[%clk 0:01:02]} 22. Nxe2 {[%clk 0:01:26]}  Qxa2 {[%clk 0:01:03]} 23. Nc3 {[%clk 0:01:22]}  Qxb3 {[%clk 0:00:57]} 24. g3 {[%clk 0:01:16]}  Nb6 {[%clk 0:00:51]} 25. Kg2 {[%clk 0:01:13]}  Nc4 {[%clk 0:00:51]} 26. Nb1 {[%clk 0:01:00]}  Rxb7 {[%clk 0:00:40]} 27. cxb7 {[%clk 0:00:57]}  Qxb7+ {[%clk 0:00:41]} 28. Kh3 {[%clk 0:00:52]}  Re5 {[%clk 0:00:30]} 29. Qxc4 {[%clk 0:00:31]}  Rh5+ {[%clk 0:00:29]} 30. Kg4 {[%clk 0:00:31]}  Qxh1 {[%clk 0:00:20]} 31. Qc8+ {[%clk 0:00:28]}  Bf8 {[%clk 0:00:20]} 32. Nc3 {[%clk 0:00:23]}  Qa1 {[%clk 0:00:14]} 33. Be3 {[%clk 0:00:18]}  Qa5 {[%clk 0:00:14]} 34. Kf3 {[%clk 0:00:17]}  Qf5+ {[%clk 0:00:13]} 35. Ke2 {[%clk 0:00:17]}  Qxc8 {[%clk 0:00:13]} 0-1


[Site "https://www.chess.com"]

[Event "Titled Tuesday Blitz February 15 Early 2022"]
[White "Jakubowski, Krzysztof"]
[Black "Gelman, Alexander"]
[WhiteFideId "1112848"]
[BlackFideId "4118316"]
[WhiteElo "2365"]
[BlackElo "2375"]
[Result "1-0"]
[Round "09"]
[TimeControl "180+1"]
[Date "2022.02.15"]
[WhiteClock "0:00:26"]
[BlackClock "0:00:03"]

1. e4 {[%clk 0:03:00]}  c5 {[%clk 0:02:59]} 2. Nf3 {[%clk 0:03:00]}  e6 {[%clk 0:02:59]} 3. d4 {[%clk 0:03:00]}  cxd4 {[%clk 0:02:59]} 4. Nxd4 {[%clk 0:03:01]}  a6 {[%clk 0:02:59]} 5. Nc3 {[%clk 0:03:01]}  d6 {[%clk 0:02:59]} 6. Bd3 {[%clk 0:02:59]}  Nf6 {[%clk 0:02:59]} 7. a4 {[%clk 0:02:56]}  b6 {[%clk 0:02:58]} 8. O-O {[%clk 0:02:55]}  Bb7 {[%clk 0:02:58]} 9. Qe1 {[%clk 0:02:51]}  Nbd7 {[%clk 0:02:57]} 10. f4 {[%clk 0:02:50]}  h5 {[%clk 0:02:54]} 11. Rf3 {[%clk 0:02:47]}  Qc7 {[%clk 0:02:38]} 12. Kh1 {[%clk 0:02:45]}  Be7 {[%clk 0:02:35]} 13. Be3 {[%clk 0:02:42]}  g6 {[%clk 0:02:18]} 14. Bf2 {[%clk 0:02:35]}  Ng4 {[%clk 0:02:15]} 15. Bg1 {[%clk 0:02:31]}  Nc5 {[%clk 0:01:54]} 16. Qe2 {[%clk 0:02:19]}  Rc8 {[%clk 0:01:43]} 17. Raf1 {[%clk 0:02:16]}  Bf6 {[%clk 0:01:28]} 18. Rh3 {[%clk 0:02:11]}  Bg7 {[%clk 0:01:22]} 19. Nf3 {[%clk 0:01:48]}  Qe7 {[%clk 0:01:17]} 20. Ng5 {[%clk 0:01:45]}  O-O {[%clk 0:01:06]} 21. Rg3 {[%clk 0:01:31]}  Bxc3 {[%clk 0:00:46]} 22. bxc3 {[%clk 0:01:30]}  Nxa4 {[%clk 0:00:47]} 23. c4 {[%clk 0:01:18]}  e5 {[%clk 0:00:39]} 24. Nh3 {[%clk 0:00:57]}  Nc5 {[%clk 0:00:31]} 25. f5 {[%clk 0:00:54]}  Qh4 {[%clk 0:00:21]} 26. Be3 {[%clk 0:00:45]}  Nxe3 {[%clk 0:00:18]} 27. Qxe3 {[%clk 0:00:45]}  Kg7 {[%clk 0:00:15]} 28. f6+ {[%clk 0:00:43]}  Kh7 {[%clk 0:00:15]} 29. Ng5+ {[%clk 0:00:31]}  Kg8 {[%clk 0:00:15]} 30. Rh3 {[%clk 0:00:29]}  Qg4 {[%clk 0:00:12]} 31. Be2 {[%clk 0:00:29]}  Qd7 {[%clk 0:00:07]} 32. Bxh5 {[%clk 0:00:28]}  Nxe4 {[%clk 0:00:05]} 33. Nxe4 {[%clk 0:00:27]}  Rxc4 {[%clk 0:00:04]} 34. Bf3 {[%clk 0:00:26]}  Qf5 {[%clk 0:00:03]} 35. Rh8+ {[%clk 0:00:25]}  Kxh8 {[%clk 0:00:03]} 36. Qh6+ {[%clk 0:00:26]} 1-0


[Site "https://www.chess.com"]

[Event "Titled Tuesday Blitz February 15 Early 2022"]
[White "Johnson, Ben"]
[Black "Krstulovic, Alex"]
[WhiteFideId "2010917"]
[BlackFideId "760056"]
[WhiteElo "2214"]
[BlackElo "2193"]
[Result "0-1"]
[Round "09"]
[TimeControl "180+1"]
[Date "2022.02.15"]
[WhiteClock "0:00:03"]
[BlackClock "0:01:02"]

1. Nf3 {[%clk 0:03:00]}  d5 {[%clk 0:02:57]} 2. e3 {[%clk 0:03:01]}  Nf6 {[%clk 0:02:54]} 3. c4 {[%clk 0:03:01]}  e6 {[%clk 0:02:51]} 4. b3 {[%clk 0:03:00]}  b6 {[%clk 0:02:51]} 5. cxd5 {[%clk 0:02:55]}  exd5 {[%clk 0:02:50]} 6. Nc3 {[%clk 0:02:53]}  a6 {[%clk 0:02:44]} 7. Bb2 {[%clk 0:02:51]}  Bd6 {[%clk 0:02:44]} 8. Be2 {[%clk 0:02:49]}  Bb7 {[%clk 0:02:43]} 9. O-O {[%clk 0:02:49]}  O-O {[%clk 0:02:42]} 10. Qc2 {[%clk 0:02:42]}  Nbd7 {[%clk 0:02:38]} 11. Rac1 {[%clk 0:02:30]}  c5 {[%clk 0:02:37]} 12. d4 {[%clk 0:02:29]}  Rc8 {[%clk 0:02:30]} 13. Qf5 {[%clk 0:02:24]}  cxd4 {[%clk 0:02:18]} 14. Nxd4 {[%clk 0:02:20]}  Ne5 {[%clk 0:02:18]} 15. f4 {[%clk 0:02:01]}  Ng6 {[%clk 0:02:14]} 16. Bf3 {[%clk 0:01:47]}  Nh4 {[%clk 0:02:10]} 17. Qh3 {[%clk 0:01:40]}  Ng6 {[%clk 0:02:02]} 18. Nf5 {[%clk 0:01:23]}  Re8 {[%clk 0:02:01]} 19. Rfd1 {[%clk 0:01:15]}  Bc5 {[%clk 0:01:52]} 20. Rd3 {[%clk 0:00:37]}  Nxf4 {[%clk 0:01:51]} 21. Qg3 {[%clk 0:00:27]}  Ng6 {[%clk 0:01:35]} 22. Rcd1 {[%clk 0:00:21]}  Qd7 {[%clk 0:01:28]} 23. Bg4 {[%clk 0:00:17]}  Nxg4 {[%clk 0:01:27]} 24. Qxg4 {[%clk 0:00:18]}  Qe6 {[%clk 0:01:21]} 25. h4 {[%clk 0:00:15]}  d4 {[%clk 0:01:16]} 26. exd4 {[%clk 0:00:10]}  Bf8 {[%clk 0:01:15]} 27. h5 {[%clk 0:00:09]}  Ne7 {[%clk 0:01:09]} 28. Nxe7+ {[%clk 0:00:03]}  Qxe7 {[%clk 0:01:10]} 29. Qg3 {[%clk 0:00:03]}  Rcd8 {[%clk 0:01:05]} 30. d5 {[%clk 0:00:03]}  Qc5+ {[%clk 0:01:04]} 31. Kh2 {[%clk 0:00:03]}  Bd6 {[%clk 0:01:02]} 0-1


[Site "https://www.chess.com"]

[Event "Titled Tuesday Blitz February 15 Early 2022"]
[White "Joubert, Dantelle"]
[Black "Piliczewski, Bogusz"]
[WhiteFideId "14310813"]
[BlackFideId "1104144"]
[WhiteElo "1507"]
[BlackElo "1896"]
[Result "0-1"]
[Round "09"]
[TimeControl "180+1"]
[Date "2022.02.15"]
[WhiteClock "0:00:08"]
[BlackClock "0:01:27"]

1. Nf3 {[%clk 0:03:00]}  d5 {[%clk 0:02:57]} 2. c4 {[%clk 0:03:00]}  c6 {[%clk 0:02:56]} 3. d4 {[%clk 0:02:58]}  Nf6 {[%clk 0:02:56]} 4. cxd5 {[%clk 0:02:54]}  cxd5 {[%clk 0:02:55]} 5. Nc3 {[%clk 0:02:54]}  Nc6 {[%clk 0:02:55]} 6. Bf4 {[%clk 0:02:51]}  a6 {[%clk 0:02:55]} 7. e3 {[%clk 0:02:51]}  Bf5 {[%clk 0:02:55]} 8. Bd3 {[%clk 0:02:41]}  Bxd3 {[%clk 0:02:54]} 9. Qxd3 {[%clk 0:02:39]}  e6 {[%clk 0:02:54]} 10. O-O {[%clk 0:02:23]}  Bd6 {[%clk 0:02:53]} 11. Bg3 {[%clk 0:02:22]}  O-O {[%clk 0:02:52]} 12. Rac1 {[%clk 0:02:18]}  Rc8 {[%clk 0:02:47]} 13. Ne5 {[%clk 0:01:42]}  Nh5 {[%clk 0:02:36]} 14. Nxc6 {[%clk 0:01:31]}  Rxc6 {[%clk 0:02:35]} 15. Bxd6 {[%clk 0:01:31]}  Qxd6 {[%clk 0:02:33]} 16. Na4 {[%clk 0:01:20]}  f5 {[%clk 0:02:22]} 17. Rc3 {[%clk 0:01:08]}  Nf6 {[%clk 0:02:18]} 18. f3 {[%clk 0:01:06]}  Rfc8 {[%clk 0:02:12]} 19. Rfc1 {[%clk 0:01:06]}  Nd7 {[%clk 0:02:07]} 20. b3 {[%clk 0:00:25]}  b5 {[%clk 0:02:05]} 21. Nb2 {[%clk 0:00:21]}  Rxc3 {[%clk 0:01:58]} 22. Rxc3 {[%clk 0:00:20]}  Rc6 {[%clk 0:01:54]} 23. Qc2 {[%clk 0:00:20]}  Nb8 {[%clk 0:01:50]} 24. Nd3 {[%clk 0:00:20]}  Rxc3 {[%clk 0:01:46]} 25. Qxc3 {[%clk 0:00:19]}  Qc6 {[%clk 0:01:44]} 26. Qxc6 {[%clk 0:00:18]}  Nxc6 {[%clk 0:01:44]} 27. Nc5 {[%clk 0:00:18]}  Nb4 {[%clk 0:01:40]} 28. a3 {[%clk 0:00:17]}  Nc2 {[%clk 0:01:40]} 29. a4 {[%clk 0:00:14]}  Nxe3 {[%clk 0:01:35]} 30. Nxa6 {[%clk 0:00:12]}  bxa4 {[%clk 0:01:35]} 31. bxa4 {[%clk 0:00:12]}  Nc2 {[%clk 0:01:35]} 32. Nc5 {[%clk 0:00:09]}  Nxd4 {[%clk 0:01:34]} 33. a5 {[%clk 0:00:10]}  Nc6 {[%clk 0:01:28]} 34. a6 {[%clk 0:00:08]}  Kf7 {[%clk 0:01:27]} 0-1


[Site "https://www.chess.com"]